lending/lending_fUSD_20240605
["ID","MTS","AMOUNT","RATE_DAILY","PERIOD"]
[328601424,1717597837962,-326.84017377,0.00028642,2]
[328601425,1717597837975,-255.9999999,0.00028642,2]
[328601426,1717597837986,-38.11382633,0.00028642,2]
[328601427,1717597837996,-798.76379841,0.00028949,2]
[328601428,1717597838008,-755.41426158,0.00028949,2]
[328601429,1717597838020,-51.27715466,0.00028949,2]
[328601430,1717597838031,-755.84,0.0002899,3]
[328601431,1717597838040,-20039.76932109,0.00029,2]
[328601432,1717597838052,-1466.88746637,0.00029,2]
[328601433,1717597838064,-491.9965155,0.00029,2]
[328601434,1717597838075,-10435.96645618,0.00029,2]
[328601435,1717597838087,-461.61248665,0.00029,2]
[328601436,1717597838212,-1062.42347237,0.00028069,2]
[328601437,1717597838225,-2125.90404088,0.00029,2]
[328601438,1717597838238,-2608.70054198,0.00029,2]
[328601439,1717597838254,-70463.20092887,0.00029,2]
[328601440,1717597838266,-703.20536157,0.00029,2]
[328601441,1717597838277,-622.21983407,0.00029,2]
[328601442,1717597838290,-2689.0618997,0.00029,2]
[328601443,1717597838302,-276.25065,0.00029,2]
[328601444,1717597838315,-88309.28869684,0.00029,2]
[328601445,1717597838327,-150.0,0.00029,2]
[328601446,1717597838337,-161.3,0.00029041,2]
[328601447,1717597838347,-150.0,0.00029041,2]
[328601448,1717597838357,-150.0,0.00029041,2]
[328601449,1717597838367,-150.0,0.00029041,2]
[328601450,1717597838377,-150.0,0.00029041,2]
[328601451,1717597838386,-274.5172502,0.00029045,2]
[328601452,1717597838395,-477.64002422,0.00029091,2]
[328601453,1717597838408,-161.21054668,0.00029141,2]
[328601454,1717597838418,-1789.881681,0.00029144,2]
[328601455,1717597838428,-2634.427178,0.00029144,2]
[328601456,1717597838438,-2345.735879,0.00029144,2]
[328601457,1717597838447,-274.5172502,0.0002919,2]
[328601458,1717597838457,-1100.0,0.000292,10]
[328601459,1717597838467,-161.21054668,0.0002927,2]
[328601460,1717597838476,-7500.0,0.00029289,2]
[328601461,1717597838486,-154.10144957,0.00029289,2]
[328601462,1717597838496,-531.24159769,0.00029289,2]
[328601463,1717597838506,-1157.45765825,0.0002929,2]
[328601464,1717597838516,-884.53255083,0.0002929,2]
[328601465,1717597838526,-154.4640771,0.0002929,2]
[328601466,1717597838536,-500.0,0.00029293,2]
[328601467,1717597838546,-200.0,0.00029293,2]
[328601468,1717597838556,-6555.52166369,0.00029297,2]
[328601469,1717597838566,-185.61446947,0.00029297,2]
[328601470,1717597838576,-1400.0,0.000293,10]
[328601471,1717597838585,-274.5172502,0.00029335,2]
[328601472,1717597838595,-6555.52166358,0.00029352,2]
[328601473,1717597838605,-151.74,0.00029367,2]
[328601474,1717597838615,-200262.8718725,0.00029377,2]
[328601475,1717597838624,-11639.4416625,0.00029377,2]
[328601476,1717597838635,-151.74,0.00029379,2]
[328601477,1717597838645,-151.74,0.00029379,2]
[328601478,1717597838655,-151.74,0.00029379,2]
[328601479,1717597838858,-151.74,0.00029379,2]
[328601480,1717597838868,-151.74,0.00029379,2]
[328601481,1717597838878,-3000.0,0.00029388,2]
[328601482,1717597838888,-223326.54503188,0.00029389,13]
[328601483,1717597838944,-7042.92,0.00029389,13]
[328601484,1717597838956,-701.615321,0.00029389,13]
[328601485,1717597838967,-821.3895,0.00029389,13]
[328601487,1717597841759,-446.192,0.00028642,2]
[328601488,1717597841770,-310.55806662,0.00029389,13]
[328601489,1717597841782,-8011.06226156,0.00029389,13]
[328601490,1717597841795,-6619.43843442,0.00029389,13]
[328601491,1717597841807,-281.186742,0.00029389,13]
[328601492,1717597841819,-5198.16634652,0.00029389,13]
[328601583,1717597843219,-171.3702501,0.00029376,2]
[328601585,1717597843234,-310.0653938,0.00029389,13]
[328601586,1717597843256,-3176.12590299,0.00029389,13]
[328601587,1717597843424,-21891.30188391,0.00029389,13]
[328601588,1717597843440,-446.44016402,0.00029389,2]
[328601589,1717597843453,-2000.0,0.00029389,2]
[328601590,1717597843464,-200.0,0.00029389,2]
[328601591,1717597843475,-291.640921,0.00029389,7]
[328601592,1717597843490,-17280.73561734,0.00029389,7]
[328601593,1717597843508,-278.42683408,0.00029389,7]
[328601594,1717597843521,-7675.51353664,0.00029389,7]
[328601595,1717597843537,-7913.15942634,0.00029389,7]
[328601596,1717597843554,-542026.73945665,0.00029389,7]
[328601617,1717597849566,-156.67,0.00025492,2]
[328601618,1717597849576,-869.43,0.0002863,2]
[328601619,1717597849585,-1648.0,0.00028683,2]
[328601620,1717597849594,-1830.0,0.00028683,2]
[328601621,1717597849603,-1051.66,0.00028685,2]
[328601622,1717597849613,-704.64,0.00028767,2]
[328601623,1717597849622,-422.2,0.00028767,2]
[328601624,1717597849631,-150.0,0.00028767,2]
[328601625,1717597849640,-164.02,0.00028767,2]
[328601626,1717597849649,-150.0,0.00028767,2]
[328601627,1717597849658,-150.0,0.00028767,2]
[328601628,1717597849669,-484.57950859,0.00029152,2]
[328601629,1717597849771,-629.27928532,0.00029152,2]
[328601630,1717597849892,-491.59642074,0.00029152,2]
[328601631,1717597849902,-213.11357926,0.00029389,7]
[328601633,1717597940262,1952.109,0.00017259,2]
[328601634,1717597940290,1225.13725531,0.00017259,2]
[328601639,1717598024667,4000.0,0.00014,2]
[328601640,1717598024692,4000.0,0.00014,2]
[328601641,1717598024717,4000.0,0.00014,2]
[328601642,1717598024743,4000.0,0.00014,2]
[328601643,1717598024767,4000.0,0.00014,2]
[328601644,1717598024792,4000.0,0.00014,2]
[328601645,1717598024817,4000.0,0.00014,2]
[328601646,1717598024842,4000.0,0.00014,2]
[328601647,1717598024866,4000.0,0.00014,2]
[328601648,1717598024891,4000.0,0.00014,2]
[328601649,1717598024917,4000.0,0.00014,2]
[328601650,1717598024942,4000.0,0.00014,2]
[328601651,1717598024968,4000.0,0.00014,2]
[328601652,1717598024995,4000.0,0.00014,2]
[328601653,1717598025025,22365.85897253,0.00014,2]
[328601654,1717598046693,27503.0,0.000118,2]
[328601682,1717598607581,404899.14047667,0.000118,2]
[328601683,1717598841754,-2138.29791358,0.00024,3]
[328601684,1717598847101,-806.6701428,0.00024,3]
[328601685,1717598945118,-2193.89188073,0.00024,3]
[328601686,1717598945138,-350.345,0.00024,2]
[328601687,1717598945157,-1289.0,0.00024,3]
[328601688,1717598945176,-160.08,0.00024384,2]
[328601689,1717598948201,-1486.109679,0.00025396,2]
[328601690,1717598948221,-5568.4477389,0.00025524,2]
[328601691,1717598957125,-200.0,0.00030472,120]
[328601692,1717598974089,-1256.00380633,0.00025524,2]
[328601693,1717598974116,-43845.83458302,0.00025525,2]
[328601701,1717599032244,-444.50127724,0.00025525,2]
[328601702,1717599035021,-3586.109679,0.00025525,2]
[328601705,1717599037072,492.10282983,0.0002042,2]
[328601708,1717599038349,-1061.03188974,0.00025525,2]
[328601709,1717599038360,-300.001004,0.00025525,2]
[328601710,1717599038449,-41964.748367,0.00025525,2]
[328601711,1717599038459,-516.2676,0.00025525,2]
[328601712,1717599038469,-2964.6757,0.00025525,2]
[328601713,1717599038479,-150.0,0.00025671,2]
[328601714,1717599038489,-499.99,0.00025671,2]
[328601715,1717599038500,-512.68,0.00025698,2]
[328601716,1717599038509,-1522.05576886,0.00026248,2]
[328601717,1717599038520,-676.0,0.000266,2]
[328601718,1717599038529,-2401.0,0.000267,2]
[328601719,1717599038539,-854.32,0.00026858,2]
[328601720,1717599038549,-1436.54,0.00026892,3]
[328601721,1717599038558,-250.0,0.00027217,2]
[328601722,1717599038568,-154.1054914,0.00027511,2]
[328601723,1717599038577,-250.0,0.00027536,2]
[328601724,1717599038587,-664.67,0.00027562,2]
[328601725,1717599038596,-156.40627991,0.00027738,2]
[328601726,1717599038606,-1051.14,0.00027836,2]
[328601727,1717599038620,-235.86,0.00027836,2]
[328601728,1717599038629,-269.12,0.00027836,2]
[328601729,1717599038638,-353.04,0.00027836,2]
[328601730,1717599038648,-164.02,0.00027836,2]
[328601731,1717599038658,-353.04,0.00027836,2]
[328601732,1717599038668,-422.2,0.00027836,2]
[328601733,1717599038678,-150.0,0.00027836,2]
[328601734,1717599038689,-164.02,0.00027836,2]
[328601735,1717599038701,-422.2,0.00027836,2]
[328601736,1717599038712,-150.0,0.00027836,2]
[328601737,1717599038723,-150.0,0.00027836,2]
[328601738,1717599038732,-353.04,0.00027836,2]
[328601739,1717599038742,-164.02,0.00027836,2]
[328601740,1717599038752,-150.0,0.00027836,2]
[328601741,1717599038761,-150.0,0.00027836,2]
[328601742,1717599038771,-353.04,0.00027836,2]
[328601743,1717599038781,-150.0,0.00027836,2]
[328601744,1717599038790,-164.02,0.00027836,2]
[328601745,1717599038800,-422.2,0.00027836,2]
[328601746,1717599038810,-158.37,0.00027836,2]
[328601747,1717599038820,-422.2,0.00027836,2]
[328601748,1717599038830,-150.0,0.00027836,2]
[328601749,1717599038840,-150.0,0.00027836,2]
[328601750,1717599038849,-353.04,0.00027836,2]
[328601751,1717599038858,-164.02,0.00027836,2]
[328601752,1717599038867,-705.92,0.00027863,2]
[328601753,1717599038876,-327.97,0.00027863,2]
[328601754,1717599038885,-150.0,0.00027863,2]
[328601755,1717599038893,-353.04,0.00027863,2]
[328601756,1717599038904,-150.0,0.00027863,2]
[328601757,1717599038914,-150.0,0.00027863,2]
[328601758,1717599038924,-164.02,0.00027863,2]
[328601759,1717599038934,-422.2,0.00027863,2]
[328601760,1717599038944,-422.2,0.00027863,2]
[328601761,1717599038954,-150.0,0.00027863,2]
[328601762,1717599038964,-150.0,0.00027863,2]
[328601763,1717599038973,-353.04,0.00027863,2]
[328601764,1717599038983,-164.02,0.00027863,2]
[328601765,1717599038992,-150.0,0.00027863,2]
[328601766,1717599039002,-150.0,0.00027863,2]
[328601767,1717599039011,-150.0,0.00027863,2]
[328601768,1717599039020,-422.2,0.00027863,2]
[328601769,1717599039029,-150.0,0.00027863,2]
[328601770,1717599039039,-150.0,0.00027863,2]
[328601771,1717599039048,-150.0,0.00027863,2]
[328601772,1717599039058,-1000.0,0.00027908,2]
[328601773,1717599039068,-844.2,0.00027945,2]
[328601774,1717599039077,-440.38,0.00027945,2]
[328601775,1717599039086,-300.0,0.00027945,2]
[328601776,1717599039096,-300.0,0.00027945,2]
[328601777,1717599039106,-150.0,0.00027945,2]
[328601778,1717599039115,-150.0,0.00027945,2]
[328601779,1717599039125,-171.22,0.0002796,2]
[328601780,1717599039134,-512.68,0.00027961,2]
[328601781,1717599039144,-2228.27381358,0.00028,7]
[328601782,1717599039153,-160.988646,0.0002809,2]
[328601783,1717599039163,-154.1054914,0.00028123,2]
[328601784,1717599039172,-154.80751471,0.00028379,2]
[328601785,1717599039181,-160.988646,0.00028441,2]
[328601786,1717599039191,-154.80751471,0.00028448,2]
[328601787,1717599039201,-274.04645546,0.0002846,2]
[328601788,1717599039211,-26058.3302,0.00028479,2]
[328601789,1717599039220,-166.12590399,0.00028479,2]
[328601790,1717599039230,-602.04570552,0.0002848,2]
[328601791,1717599039240,-613.6302,0.0002848,2]
[328601792,1717599039249,-185.61446945,0.00028483,2]
[328601793,1717599039258,-166.10785154,0.00028483,2]
[328601794,1717599039268,-501.71368936,0.00028483,2]
[328601795,1717599039277,-2185.30920018,0.00028483,2]
[328601796,1717599039286,-325.15290353,0.00028483,2]
[328601797,1717599039296,-602.59396384,0.00028483,2]
[328601798,1717599039305,-150.0,0.00028493,2]
[328601799,1717599039314,-150.0,0.00028493,2]
[328601800,1717599039324,-150.0,0.00028493,2]
[328601801,1717599039334,-151.44929633,0.00028538,2]
[328601802,1717599039343,-151.44929633,0.00028544,2]
[328601803,1717599039352,-157.47,0.00028548,3]
[328601804,1717599039361,-472.41,0.00028548,3]
[328601805,1717599039371,-150.5,0.0002855,15]
[328601806,1717599039381,-191.84009872,0.00028558,5]
[328601807,1717599039390,-334.21208478,0.00028558,2]
[328601808,1717599039400,-150.5,0.0002856,15]
[328601809,1717599039409,-314.94,0.00028569,3]
[328601810,1717599039419,-150.5,0.0002857,15]
[328601811,1717599039429,-151.74,0.0002857,2]
[328601812,1717599039439,-151.74,0.0002857,2]
[328601813,1717599039450,-151.74,0.0002857,2]
[328601814,1717599039460,-151.74,0.0002857,2]
[328601815,1717599039470,-151.74,0.0002857,2]
[328601816,1717599039480,-151.74,0.0002857,2]
[328601817,1717599039490,-151.74,0.0002857,2]
[328601818,1717599039500,-151.74,0.0002857,2]
[328601819,1717599039510,-151.74,0.0002857,2]
[328601820,1717599039520,-151.74,0.0002857,2]
[328601821,1717599039530,-151.74,0.00028573,2]
[328601822,1717599039539,-199.85,0.00028575,2]
[328601823,1717599039549,-2006.2381672,0.00028578,2]
[328601824,1717599039558,-444.97796588,0.00028578,2]
[328601825,1717599039568,-1328.08218191,0.00028578,2]
[328601826,1717599039578,-150.0,0.00028579,10]
[328601827,1717599039588,-150.0,0.00028579,10]
[328601828,1717599039598,-542.01877026,0.00028579,2]
[328601829,1717599039608,-500.0,0.00028579,2]
[328601830,1717599039621,-500.0,0.00028579,2]
[328601831,1717599039632,-500.0,0.00028579,2]
[328601832,1717599039642,-619.99652141,0.00028579,2]
[328601833,1717599039652,-500.0,0.00028579,2]
[328601834,1717599039662,-500.0,0.00028579,2]
[328601835,1717599039672,-500.0,0.00028579,2]
[328601836,1717599039681,-500.0,0.00028579,2]
[328601837,1717599039692,-500.0,0.00028579,2]
[328601838,1717599039703,-500.0,0.00028579,2]
[328601839,1717599039713,-500.0,0.00028579,2]
[328601840,1717599039723,-500.0,0.00028579,2]
[328601841,1717599039733,-500.0,0.00028579,2]
[328601842,1717599039743,-500.0,0.00028579,2]
[328601843,1717599039752,-500.0,0.00028579,2]
[328601844,1717599039762,-500.0,0.00028579,2]
[328601845,1717599039772,-500.0,0.00028579,2]
[328601846,1717599039782,-500.0,0.00028579,2]
[328601847,1717599039793,-500.0,0.00028579,2]
[328601848,1717599039803,-500.0,0.00028579,2]
[328601849,1717599039812,-500.0,0.00028579,2]
[328601850,1717599039822,-500.0,0.00028579,2]
[328601851,1717599039831,-500.0,0.00028579,2]
[328601852,1717599039841,-500.0,0.00028579,2]
[328601853,1717599039851,-613.13314014,0.00028579,2]
[328601854,1717599039860,-500.0,0.00028579,2]
[328601855,1717599039870,-500.0,0.00028579,2]
[328601856,1717599039879,-500.0,0.00028579,2]
[328601857,1717599039889,-500.0,0.00028579,2]
[328601858,1717599039898,-500.0,0.00028579,2]
[328601859,1717599039907,-500.0,0.00028579,2]
[328601860,1717599039917,-500.0,0.00028579,2]
[328601861,1717599039927,-500.0,0.00028579,2]
[328601862,1717599039937,-500.0,0.00028579,2]
[328601863,1717599039949,-500.0,0.00028579,2]
[328601864,1717599039959,-500.0,0.00028579,2]
[328601865,1717599039968,-400.0,0.00028579,2]
[328601866,1717599039977,-99367.62577276,0.0002858,13]
[328601868,1717599040087,-3000.51096738,0.0002858,13]
[328601871,1717599042000,-8005.19999979,0.0002858,13]
[328601875,1717599043333,-28471.85070242,0.0002858,13]
[328601876,1717599043343,-14207.03074053,0.0002858,7]
[328601883,1717599043662,-450425.3882614,0.0002858,7]
[328601886,1717599046118,-353.04,0.00027836,2]
[328601888,1717599046127,-150.0,0.00027836,2]
[328601890,1717599046136,-422.2,0.00027836,2]
[328601892,1717599046146,-143646.8273602,0.0002858,7]
[328601896,1717599046158,-312.07057089,0.0002858,7]
[328601925,1717599046425,-164.02,0.00027836,2]
[328601927,1717599046435,-3393.0299,0.0002858,7]
[328601960,1717599046764,-60890.66868986,0.0002858,7]
[328602150,1717599071914,506.32296391,0.00017259,2]
[328602151,1717599093830,491.84,0.00024941,2]
[328602153,1717599130501,234.87,0.00024384,2]
[328602154,1717599150734,226.57668191,0.000201,2]
[328602157,1717600027107,-176.371291,0.00017247,2]
[328602158,1717600027128,-200.15,0.00017248,2]
[328602159,1717600027148,-118.69870899,0.00017254,2]
[328602160,1717600033153,-32.38129101,0.00017254,2]
[328602161,1717600033176,-3376.13336481,0.000201,2]
[328602162,1717600039101,-9267.56528712,0.000201,2]
[328602163,1717600041104,-8960.94619433,0.000201,2]
[328602164,1717600052100,-12670.39588336,0.000201,2]
[328602165,1717600052123,-226.57668191,0.000201,2]
[328602166,1717600052144,-168.87,0.00024384,2]
[328602167,1717600052166,-150.99,0.00024384,2]
[328602168,1717600052186,-499.99,0.0002444,2]
[328602169,1717600052208,-467.24,0.0002444,2]
[328602170,1717600052229,-250.0,0.000247,7]
[328602171,1717600052249,-1250.0,0.00025,2]
[328602172,1717600052271,-150.82,0.0002552,2]
[328602173,1717600052292,-446.52248219,0.00025525,2]
[328602174,1717600052316,-1046.18219115,0.00025525,2]
[328602175,1717600052338,-7993.22601295,0.00025525,2]
[328602177,1717600154114,-6291.1441,0.00025425,2]
[328602178,1717600154137,-526.796498,0.00025525,2]
[328602180,1717600161106,-10918.87553452,0.00025525,2]
[328602181,1717600190868,226.57668191,0.000201,2]
[328602184,1717600204821,226.57668191,0.00021434,2]
[328602187,1717600221116,226.57668191,0.00021434,2]
[328602197,1717600232589,-4393.71546166,0.00025525,2]
[328602198,1717600232600,-548.70135201,0.00025561,3]
[328602199,1717600232610,-155.0,0.0002572,2]
[328602200,1717600232619,-752.03196948,0.0002572,2]
[328602201,1717600232629,-250.0,0.00026246,2]
[328602202,1717600232639,-189.65,0.00026246,2]
[328602203,1717600232649,-236.54770877,0.00026322,2]
[328602204,1717600232782,-183.23952236,0.00026322,2]
[328602205,1717600232896,-479.15276887,0.00026322,2]
[328602206,1717600232906,-250.0,0.0002635,2]
[328602207,1717600232918,-170.64,0.00026534,2]
[328602208,1717600232928,-2419.0,0.000266,2]
[328602209,1717600232940,-157.37,0.00026693,2]
[328602210,1717600232951,-467.24,0.00026704,2]
[328602211,1717600232961,-754.32,0.00026803,2]
[328602212,1717600232971,-152.22,0.00026864,2]
[328602213,1717600232981,-150.0,0.00027014,2]
[328602214,1717600232991,-422.2,0.00027014,2]
[328602216,1717600233006,-150.0,0.00027014,2]
[328602218,1717600233015,-164.02,0.00027014,2]
[328602220,1717600233024,-353.04,0.00027014,2]
[328602222,1717600233034,-150.0,0.00027014,2]
[328602224,1717600233045,-422.2,0.00027014,2]
[328602225,1717600233055,-150.0,0.00027014,2]
[328602226,1717600233066,-150.0,0.00027014,2]
[328602227,1717600233078,-353.04,0.00027014,2]
[328602228,1717600233091,-164.02,0.00027014,2]
[328602229,1717600233102,-422.2,0.00027014,2]
[328602230,1717600233112,-353.04,0.00027014,2]
[328602231,1717600233121,-150.0,0.00027014,2]
[328602232,1717600233131,-150.0,0.00027014,2]
[328602233,1717600233142,-164.02,0.00027014,2]
[328602234,1717600233152,-150.0,0.00027014,2]
[328602235,1717600233162,-422.2,0.00027014,2]
[328602236,1717600233171,-353.04,0.00027014,2]
[328602237,1717600233180,-150.0,0.00027014,2]
[328602238,1717600233190,-353.04,0.00027014,2]
[328602239,1717600233200,-150.0,0.00027014,2]
[328602240,1717600233209,-150.0,0.00027014,2]
[328602241,1717600233219,-422.2,0.00027014,2]
[328602242,1717600233229,-422.2,0.00027014,2]
[328602243,1717600233239,-150.0,0.00027014,2]
[328602244,1717600233249,-150.0,0.00027014,2]
[328602245,1717600233259,-353.04,0.00027014,2]
[328602246,1717600233268,-422.2,0.00027014,2]
[328602247,1717600233277,-150.0,0.00027014,2]
[328602248,1717600233287,-150.0,0.00027014,2]
[328602249,1717600233299,-166.12,0.00027014,2]
[328602250,1717600233310,-344.14,0.00027014,2]
[328602251,1717600233320,-150.0,0.00027014,2]
[328602252,1717600233332,-422.2,0.00027014,2]
[328602253,1717600233342,-164.02,0.00027014,2]
[328602254,1717600233352,-156.40627991,0.00027096,2]
[328602255,1717600233363,-151.6379093,0.00027133,2]
[328602256,1717600233373,-156.40627991,0.00027249,2]
[328602257,1717600233383,-324.40312278,0.00027435,2]
[328602258,1717600233393,-153.96638714,0.00027494,2]
[328602259,1717600233403,-2309.0,0.000277,2]
[328602260,1717600233414,-151.6379093,0.00027726,2]
[328602261,1717600233423,-164.02,0.00027836,2]
[328602262,1717600233433,-164.02,0.00027836,2]
[328602263,1717600233443,-164.02,0.00027836,2]
[328602264,1717600233452,-422.2,0.00027836,2]
[328602265,1717600233462,-164.02,0.00027836,2]
[328602266,1717600233473,-150.0,0.00027836,2]
[328602267,1717600233482,-162.93,0.00027836,2]
[328602268,1717600233491,-422.2,0.00027836,2]
[328602269,1717600233501,-150.0,0.00027836,2]
[328602270,1717600233510,-150.0,0.00027836,2]
[328602271,1717600233520,-422.2,0.00027836,2]
[328602272,1717600233529,-150.0,0.00027836,2]
[328602273,1717600233539,-422.2,0.00027836,2]
[328602274,1717600233549,-150.0,0.00027836,2]
[328602275,1717600233558,-422.2,0.00027836,2]
[328602276,1717600233567,-150.0,0.00027836,2]
[328602277,1717600233577,-422.2,0.00027836,2]
[328602278,1717600233586,-422.2,0.00027836,2]
[328602279,1717600233596,-150.0,0.00027945,2]
[328602280,1717600233605,-153.96638714,0.00027971,2]
[328602281,1717600233615,-1011.0,0.00028,7]
[328602282,1717600233624,-1000.0,0.00028,7]
[328602283,1717600233634,-1000.0,0.00028,7]
[328602284,1717600233643,-1000.0,0.00028,7]
[328602285,1717600233652,-1009.0,0.00028,7]
[328602286,1717600233661,-474.0,0.00028,6]
[328602287,1717600233670,-1003.1764439,0.00028008,2]
[328602288,1717600233680,-1000.0,0.00028081,2]
[328602289,1717600233689,-169.78,0.00028081,2]
[328602290,1717600233698,-871.81,0.00028082,2]
[328602291,1717600233708,-153.871108,0.0002809,2]
[328602292,1717600233717,-735.066157,0.0002809,2]
[328602293,1717600233728,-1000.0,0.000282,2]
[328602294,1717600233737,-412.75360643,0.00028256,2]
[328602295,1717600233747,-3000.0,0.0002829,2]
[328602296,1717600233757,-381.76420571,0.00028295,2]
[328602297,1717600233766,-708.426,0.00028345,2]
[328602298,1717600233775,-5141.0,0.00028345,2]
[328602299,1717600233785,-38015.0,0.00028345,2]
[328602300,1717600233795,-905.13,0.00028356,2]
[328602301,1717600233804,-201.10144202,0.00028358,2]
[328602302,1717600233814,-14716.6905,0.0002838,2]
[328602303,1717600233823,-277.0034,0.0002838,2]
[328602304,1717600233832,-21528.4803,0.0002838,2]
[328602305,1717600233841,-730.58818236,0.0002838,2]
[328602306,1717600233851,-711.33735187,0.0002838,2]
[328602307,1717600233860,-292.46122113,0.0002838,2]
[328602308,1717600233870,-1234.0,0.000284,2]
[328602309,1717600233879,-292.46122113,0.00028405,2]
[328602310,1717600233889,-292.46122113,0.0002843,2]
[328602311,1717600233899,-293.0,0.00028439,2]
[328602312,1717600233908,-735.066157,0.00028441,2]
[328602313,1717600233917,-292.46122113,0.00028455,2]
[328602314,1717600233926,-157.47,0.0002847,3]
[328602315,1717600233936,-472.41,0.0002847,3]
[328602316,1717600233945,-150.1,0.0002847,2]
[328602317,1717600233955,-1000.0,0.0002848,2]
[328602318,1717600233964,-238329.13111932,0.0002848,2]
[328602319,1717600233977,-6670.86888068,0.0002848,2]
[328602320,1717600233987,-6228.94408857,0.0002848,2]
[328602321,1717600233997,-185.61446945,0.0002848,2]
[328602322,1717600234008,-292.46122113,0.0002848,2]
[328602323,1717600234018,-169.98125822,0.0002848,2]
[328602324,1717600234027,-322.45777263,0.0002848,2]
[328602325,1717600234036,-1000.0,0.000285,7]
[328602326,1717600234046,-1000.0,0.000285,7]
[328602327,1717600234056,-1000.0,0.000285,7]
[328602328,1717600234066,-711.3373518,0.00028549,2]
[328602329,1717600234076,-150.5,0.00028553,15]
[328602330,1717600234087,-150.5,0.00028563,15]
[328602331,1717600234098,-150.1,0.0002857,2]
[328602332,1717600234107,-150.1,0.0002857,2]
[328602333,1717600234117,-150.1,0.0002857,2]
[328602334,1717600234128,-151.75,0.0002857,2]
[328602335,1717600234138,-151.75,0.0002857,2]
[328602336,1717600234148,-151.75,0.0002857,2]
[328602337,1717600234166,-151.75,0.0002857,2]
[328602338,1717600234176,-151.75,0.0002857,2]
[328602339,1717600234186,-151.75,0.0002857,2]
[328602340,1717600234196,-150.5,0.00028573,15]
[328602341,1717600234206,-730.58818229,0.00028577,2]
[328602342,1717600234216,-399.66343098,0.00028578,2]
[328602343,1717600234228,-15114.81988342,0.00028578,2]
[328602344,1717600234238,-658.82439606,0.00028578,2]
[328602345,1717600234248,-1459.77300412,0.00028578,2]
[328602346,1717600234258,-156.01289588,0.00028578,2]
[328602347,1717600234268,-320.92127422,0.00028578,2]
[328602348,1717600234277,-150.0,0.00028579,10]
[328602349,1717600234286,-150.0,0.00028579,10]
[328602350,1717600234296,-470.44836492,0.00028579,2]
[328602351,1717600234305,-379.58970698,0.00028579,2]
[328602352,1717600234315,-500.0,0.00028579,2]
[328602353,1717600234324,-500.0,0.00028579,2]
[328602354,1717600234333,-500.0,0.00028579,2]
[328602355,1717600234343,-500.0,0.00028579,2]
[328602356,1717600234352,-500.0,0.00028579,2]
[328602357,1717600234361,-500.0,0.00028579,2]
[328602358,1717600234371,-500.0,0.00028579,2]
[328602359,1717600234380,-500.0,0.00028579,2]
[328602360,1717600234390,-500.0,0.00028579,2]
[328602361,1717600234399,-500.0,0.00028579,2]
[328602362,1717600234409,-560.9970021,0.00028579,2]
[328602363,1717600234418,-500.0,0.00028579,2]
[328602364,1717600234427,-500.0,0.00028579,2]
[328602365,1717600234580,-150.0,0.00028579,2]
[328602366,1717600234591,-187973.8573412,0.0002858,7]
[328602367,1717600238296,-250.0,0.00026322,2]
[328602369,1717600238306,-250.0,0.00027654,2]
[328602371,1717600238316,-1064.0,0.00028345,2]
[328602373,1717600238325,-49183.96324919,0.0002858,13]
[328602375,1717600238336,-11055.74999888,0.0002858,13]